[Event "Titled Tuesday Blitz December 14 2021"]
[White "Rakhmanov, Aleksandr"]
[Black "Vidit, Santosh Gujrathi"]
[WhiteFideId "4173708"]
[BlackFideId "5029465"]
[WhiteElo "2500"]
[BlackElo "2628"]
[Result "0-1"]
[Round "07"]
[TimeControl "180+1"]
[Date "2021.12.14"]
[WhiteClock "0:00:01"]
[BlackClock "0:00:03"]

1. d4 {[%clk 0:03:00]}  Nf6 {[%clk 0:03:00]} 2. c4 {[%clk 0:02:59]}  e6 {[%clk 0:02:59]} 3. Nc3 {[%clk 0:02:59]}  Bb4 {[%clk 0:02:59]} 4. e3 {[%clk 0:02:59]}  O-O {[%clk 0:02:59]} 5. Nf3 {[%clk 0:02:58]}  b6 {[%clk 0:02:56]} 6. Bd2 {[%clk 0:02:58]}  Bb7 {[%clk 0:02:56]} 7. Bd3 {[%clk 0:02:57]}  d5 {[%clk 0:02:56]} 8. cxd5 {[%clk 0:02:54]}  exd5 {[%clk 0:02:57]} 9. Rc1 {[%clk 0:02:53]}  Re8 {[%clk 0:02:54]} 10. O-O {[%clk 0:02:49]}  Bf8 {[%clk 0:02:54]} 11. Ne5 {[%clk 0:02:48]}  c5 {[%clk 0:02:53]} 12. f4 {[%clk 0:02:49]}  Nc6 {[%clk 0:02:51]} 13. Ne2 {[%clk 0:02:48]}  Rc8 {[%clk 0:02:48]} 14. Bc3 {[%clk 0:02:10]}  c4 {[%clk 0:02:33]} 15. Bf5 {[%clk 0:02:03]}  Rc7 {[%clk 0:02:32]} 16. Ng3 {[%clk 0:02:02]}  b5 {[%clk 0:02:21]} 17. a3 {[%clk 0:01:55]}  a5 {[%clk 0:02:20]} 18. Be1 {[%clk 0:01:45]}  b4 {[%clk 0:02:14]} 19. axb4 {[%clk 0:01:43]}  axb4 {[%clk 0:02:15]} 20. Bb1 {[%clk 0:01:43]}  g6 {[%clk 0:02:07]} 21. Nh1 {[%clk 0:01:38]}  Bc8 {[%clk 0:02:01]} 22. Bh4 {[%clk 0:01:33]}  Be7 {[%clk 0:01:56]} 23. Ng3 {[%clk 0:01:23]}  Nd7 {[%clk 0:01:17]} 24. Bxe7 {[%clk 0:01:15]}  Qxe7 {[%clk 0:01:16]} 25. Qf3 {[%clk 0:01:15]}  Nb6 {[%clk 0:01:11]} 26. h3 {[%clk 0:01:06]}  f6 {[%clk 0:01:03]} 27. Nxc6 {[%clk 0:01:04]}  Rxc6 {[%clk 0:01:04]} 28. e4 {[%clk 0:01:03]}  dxe4 {[%clk 0:01:04]} 29. Bxe4 {[%clk 0:01:01]}  Rd6 {[%clk 0:01:01]} 30. f5 {[%clk 0:00:59]}  g5 {[%clk 0:00:57]} 31. Rfe1 {[%clk 0:00:59]}  Qd8 {[%clk 0:00:52]} 32. Bc6 {[%clk 0:00:56]}  Bd7 {[%clk 0:00:40]} 33. d5 {[%clk 0:00:53]}  Bxc6 {[%clk 0:00:26]} 34. dxc6 {[%clk 0:00:52]}  Rd3 {[%clk 0:00:26]} 35. Qf2 {[%clk 0:00:27]}  Rxe1+ {[%clk 0:00:26]} 36. Rxe1 {[%clk 0:00:27]}  c3 {[%clk 0:00:26]} 37. bxc3 {[%clk 0:00:24]}  Rxc3 {[%clk 0:00:26]} 38. Re6 {[%clk 0:00:17]}  Nd5 {[%clk 0:00:22]} 39. Qe1 {[%clk 0:00:11]}  Kf7 {[%clk 0:00:15]} 40. Ne4 {[%clk 0:00:10]}  Rc2 {[%clk 0:00:10]} 41. Qd1 {[%clk 0:00:09]}  Rxg2+ {[%clk 0:00:09]} 42. Kh1 {[%clk 0:00:10]}  Ra2 {[%clk 0:00:03]} 43. Nd6+ {[%clk 0:00:10]}  Kg7 {[%clk 0:00:03]} 44. Qxd5 {[%clk 0:00:10]}  Ra1+ {[%clk 0:00:03]} 45. Kg2 {[%clk 0:00:10]}  Qa8 {[%clk 0:00:03]} 46. Ne8+ {[%clk 0:00:08]}  Kh8 {[%clk 0:00:02]} 47. Rxf6 {[%clk 0:00:09]}  Ra2+ {[%clk 0:00:03]} 48. Kg3 {[%clk 0:00:05]}  Ra3+ {[%clk 0:00:03]} 49. Kg4 {[%clk 0:00:05]}  Qxe8 {[%clk 0:00:04]} 50. Re6 {[%clk 0:00:04]}  Qb8 {[%clk 0:00:03]} 51. Qd4+ {[%clk 0:00:04]}  Kg8 {[%clk 0:00:03]} 52. Kh5 {[%clk 0:00:03]}  Rg3 {[%clk 0:00:02]} 53. c7 {[%clk 0:00:02]}  Rxh3+ {[%clk 0:00:02]} 54. Kxg5 {[%clk 0:00:01]}  Rg3+ {[%clk 0:00:03]} 55. Kh5 {[%clk 0:00:01]}  Qxc7 {[%clk 0:00:03]} 56. Qd5 {[%clk 0:00:01]}  Qf7+ {[%clk 0:00:03]} 57. Rg6+ {[%clk 0:00:01]}  hxg6+ {[%clk 0:00:03]} 0-1


[Site "https://www.chess.com"]

[Event "Titled Tuesday Blitz December 14 2021"]
[White "Rustemov, Alexander"]
[Black "Mohammad Fahad, Rahman"]
[WhiteFideId "4119002"]
[BlackFideId "10207791"]
[WhiteElo "2860"]
[BlackElo "2323"]
[Result "1-0"]
[Round "07"]
[TimeControl "180+1"]
[Date "2021.12.14"]
[WhiteClock "0:00:12"]
[BlackClock "0:00:02"]

1. d4 {[%clk 0:03:00]}  d5 {[%clk 0:02:59]} 2. c4 {[%clk 0:02:59]}  c6 {[%clk 0:02:59]} 3. Nc3 {[%clk 0:02:58]}  Nf6 {[%clk 0:03:00]} 4. e3 {[%clk 0:02:58]}  e6 {[%clk 0:02:57]} 5. Nf3 {[%clk 0:02:58]}  Nbd7 {[%clk 0:02:56]} 6. Qc2 {[%clk 0:02:58]}  Bd6 {[%clk 0:02:55]} 7. Bd2 {[%clk 0:02:59]}  O-O {[%clk 0:02:53]} 8. O-O-O {[%clk 0:02:59]}  a5 {[%clk 0:02:37]} 9. e4 {[%clk 0:02:58]}  dxe4 {[%clk 0:02:35]} 10. Nxe4 {[%clk 0:02:59]}  Nxe4 {[%clk 0:02:35]} 11. Qxe4 {[%clk 0:02:59]}  Nf6 {[%clk 0:02:36]} 12. Qh4 {[%clk 0:02:58]}  Be7 {[%clk 0:02:33]} 13. Bd3 {[%clk 0:02:57]}  a4 {[%clk 0:02:26]} 14. Bg5 {[%clk 0:02:44]}  g6 {[%clk 0:01:53]} 15. a3 {[%clk 0:02:12]}  b5 {[%clk 0:01:50]} 16. c5 {[%clk 0:02:10]}  b4 {[%clk 0:01:48]} 17. axb4 {[%clk 0:02:09]}  a3 {[%clk 0:01:47]} 18. Ne5 {[%clk 0:01:55]}  a2 {[%clk 0:01:10]} 19. Kc2 {[%clk 0:01:52]}  Bb7 {[%clk 0:01:08]} 20. Bc4 {[%clk 0:01:45]}  Re8 {[%clk 0:00:56]} 21. Ra1 {[%clk 0:01:40]}  Ra4 {[%clk 0:00:28]} 22. Rxa2 {[%clk 0:01:34]}  Rxb4 {[%clk 0:00:28]} 23. Ra7 {[%clk 0:01:28]}  Nd7 {[%clk 0:00:23]} 24. Bxe7 {[%clk 0:01:21]}  Rxe7 {[%clk 0:00:24]} 25. Kc3 {[%clk 0:01:10]}  Nxe5 {[%clk 0:00:16]} 26. dxe5 {[%clk 0:01:08]}  Rxc4+ {[%clk 0:00:15]} 27. Qxc4 {[%clk 0:01:07]}  Qb8 {[%clk 0:00:13]} 28. Raa1 {[%clk 0:00:49]}  Qxe5+ {[%clk 0:00:13]} 29. Qd4 {[%clk 0:00:50]}  Qf5 {[%clk 0:00:13]} 30. Qd8+ {[%clk 0:00:48]}  Kg7 {[%clk 0:00:13]} 31. Qxe7 {[%clk 0:00:48]}  Qe5+ {[%clk 0:00:13]} 32. Kb3 {[%clk 0:00:40]}  Qd5+ {[%clk 0:00:13]} 33. Ka3 {[%clk 0:00:26]}  Qd3+ {[%clk 0:00:11]} 34. b3 {[%clk 0:00:26]}  Qa6+ {[%clk 0:00:12]} 35. Kb4 {[%clk 0:00:25]}  Qb5+ {[%clk 0:00:10]} 36. Kc3 {[%clk 0:00:25]}  Ba6 {[%clk 0:00:10]} 37. Qd6 {[%clk 0:00:22]}  Qe2 {[%clk 0:00:07]} 38. Qd4+ {[%clk 0:00:20]}  e5 {[%clk 0:00:07]} 39. Qe3 {[%clk 0:00:20]}  Qb5 {[%clk 0:00:07]} 40. Qxe5+ {[%clk 0:00:20]}  f6 {[%clk 0:00:08]} 41. Qe7+ {[%clk 0:00:19]}  Kh6 {[%clk 0:00:08]} 42. Rhd1 {[%clk 0:00:19]}  Bc8 {[%clk 0:00:06]} 43. Qe3+ {[%clk 0:00:19]}  g5 {[%clk 0:00:06]} 44. Ra7 {[%clk 0:00:18]}  Bf5 {[%clk 0:00:06]} 45. Rd6 {[%clk 0:00:17]}  Kg6 {[%clk 0:00:04]} 46. Qd4 {[%clk 0:00:16]}  Kh5 {[%clk 0:00:02]} 47. Rxf6 {[%clk 0:00:15]}  Bg6 {[%clk 0:00:03]} 48. g4+ {[%clk 0:00:12]}  Kh4 {[%clk 0:00:03]} 49. Rxh7+ {[%clk 0:00:11]}  Bxh7 {[%clk 0:00:02]} 50. Rh6# {[%clk 0:00:12]} 1-0


[Site "https://www.chess.com"]

[Event "Titled Tuesday Blitz December 14 2021"]
[White "Saxar85"]
[Black "Gracia Alvarez, Gerardo Antonio"]
[BlackFideId "5109124"]
[WhiteElo "2702"]
[BlackElo "2148"]
[Result "1/2-1/2"]
[Round "07"]
[TimeControl "180+1"]
[Date "2021.12.15"]
[WhiteClock "0:00:12"]
[BlackClock "0:00:05"]

1. Nf3 {[%clk 0:03:00]}  d5 {[%clk 0:02:59]} 2. g3 {[%clk 0:02:59]}  Nf6 {[%clk 0:02:59]} 3. Bg2 {[%clk 0:02:58]}  Bf5 {[%clk 0:03:00]} 4. c4 {[%clk 0:02:56]}  c6 {[%clk 0:02:58]} 5. O-O {[%clk 0:02:52]}  e6 {[%clk 0:02:58]} 6. cxd5 {[%clk 0:02:51]}  exd5 {[%clk 0:02:56]} 7. d3 {[%clk 0:02:50]}  Be7 {[%clk 0:02:56]} 8. Qb3 {[%clk 0:02:50]}  Qb6 {[%clk 0:02:55]} 9. Qc2 {[%clk 0:02:48]}  h6 {[%clk 0:02:46]} 10. Nc3 {[%clk 0:02:47]}  Bh7 {[%clk 0:02:41]} 11. e4 {[%clk 0:02:45]}  dxe4 {[%clk 0:02:39]} 12. dxe4 {[%clk 0:02:45]}  Nbd7 {[%clk 0:02:27]} 13. Be3 {[%clk 0:02:43]}  Qa6 {[%clk 0:02:11]} 14. Rfe1 {[%clk 0:02:36]}  O-O {[%clk 0:02:10]} 15. Rad1 {[%clk 0:02:31]}  Rfe8 {[%clk 0:02:05]} 16. Nd4 {[%clk 0:02:29]}  Bf8 {[%clk 0:01:59]} 17. f3 {[%clk 0:02:27]}  Qa5 {[%clk 0:01:47]} 18. a3 {[%clk 0:02:25]}  Rad8 {[%clk 0:01:45]} 19. Qf2 {[%clk 0:02:08]}  a6 {[%clk 0:01:38]} 20. h3 {[%clk 0:02:01]}  Qc7 {[%clk 0:01:36]} 21. Bc1 {[%clk 0:01:52]}  a5 {[%clk 0:01:26]} 22. f4 {[%clk 0:01:52]}  Nc5 {[%clk 0:01:17]} 23. e5 {[%clk 0:01:48]}  Qb6 {[%clk 0:00:55]} 24. Be3 {[%clk 0:01:33]}  Nfe4 {[%clk 0:00:54]} 25. Nxe4 {[%clk 0:01:18]}  Bxe4 {[%clk 0:00:53]} 26. Bxe4 {[%clk 0:01:09]}  Nxe4 {[%clk 0:00:53]} 27. Qg2 {[%clk 0:01:05]}  Nc5 {[%clk 0:00:45]} 28. Qc2 {[%clk 0:01:04]}  Rd5 {[%clk 0:00:37]} 29. Nf5 {[%clk 0:00:55]}  Red8 {[%clk 0:00:33]} 30. Rxd5 {[%clk 0:00:44]}  Rxd5 {[%clk 0:00:34]} 31. Nd6 {[%clk 0:00:43]}  Bxd6 {[%clk 0:00:24]} 32. exd6 {[%clk 0:00:43]}  Qb3 {[%clk 0:00:25]} 33. Re2 {[%clk 0:00:32]}  Qxc2 {[%clk 0:00:18]} 34. Rxc2 {[%clk 0:00:32]}  Ne4 {[%clk 0:00:19]} 35. Kg2 {[%clk 0:00:28]}  Nxd6 {[%clk 0:00:18]} 36. Kf3 {[%clk 0:00:27]}  Nf5 {[%clk 0:00:17]} 37. Bf2 {[%clk 0:00:26]}  Nd4+ {[%clk 0:00:17]} 38. Bxd4 {[%clk 0:00:27]}  Rxd4 {[%clk 0:00:18]} 39. Rc5 {[%clk 0:00:25]}  a4 {[%clk 0:00:17]} 40. Ra5 {[%clk 0:00:23]}  Rd3+ {[%clk 0:00:15]} 41. Kg4 {[%clk 0:00:23]}  Rb3 {[%clk 0:00:14]} 42. Rxa4 {[%clk 0:00:22]}  Rxb2 {[%clk 0:00:15]} 43. Ra8+ {[%clk 0:00:22]}  Kh7 {[%clk 0:00:14]} 44. h4 {[%clk 0:00:21]}  g6 {[%clk 0:00:14]} 45. h5 {[%clk 0:00:21]}  gxh5+ {[%clk 0:00:12]} 46. Kxh5 {[%clk 0:00:21]}  Kg7 {[%clk 0:00:12]} 47. Kg4 {[%clk 0:00:19]}  Ra2 {[%clk 0:00:11]} 48. a4 {[%clk 0:00:18]}  b5 {[%clk 0:00:10]} 49. Rc8 {[%clk 0:00:18]}  bxa4 {[%clk 0:00:08]} 50. Rxc6 {[%clk 0:00:18]}  a3 {[%clk 0:00:08]} 51. Ra6 {[%clk 0:00:18]}  Ra1 {[%clk 0:00:07]} 52. Kh3 {[%clk 0:00:14]}  h5 {[%clk 0:00:05]} 53. Kg2 {[%clk 0:00:13]}  f6 {[%clk 0:00:05]} 54. Ra5 {[%clk 0:00:12]}  Kg6 {[%clk 0:00:05]} 55. Kh2 {[%clk 0:00:12]}  a2 {[%clk 0:00:04]} 56. Kg2 {[%clk 0:00:11]}  Kh6 {[%clk 0:00:04]} 57. Kh2 {[%clk 0:00:11]}  Kg6 {[%clk 0:00:04]} 58. Kg2 {[%clk 0:00:12]}  Kh6 {[%clk 0:00:04]} 59. Kh2 {[%clk 0:00:12]}  Kg6 {[%clk 0:00:05]} 1/2-1/2


[Site "https://www.chess.com"]

[Event "Titled Tuesday Blitz December 14 2021"]
[White "Seo, Jung Min"]
[Black "Ovetchkin, Roman"]
[WhiteFideId "1734687"]
[BlackFideId "4119991"]
[WhiteElo "2401"]
[BlackElo "2432"]
[Result "1/2-1/2"]
[Round "07"]
[TimeControl "180+1"]
[Date "2021.12.15"]
[WhiteClock "0:01:19"]
[BlackClock "0:00:19"]

1. d4 {[%clk 0:03:00]}  Nf6 {[%clk 0:02:59]} 2. c4 {[%clk 0:03:01]}  g6 {[%clk 0:02:59]} 3. Nc3 {[%clk 0:03:00]}  Bg7 {[%clk 0:02:59]} 4. e4 {[%clk 0:03:00]}  O-O {[%clk 0:02:59]} 5. f3 {[%clk 0:02:58]}  d6 {[%clk 0:02:59]} 6. Be3 {[%clk 0:02:59]}  a6 {[%clk 0:02:58]} 7. Nge2 {[%clk 0:02:58]}  Nbd7 {[%clk 0:02:58]} 8. Qd2 {[%clk 0:02:56]}  b5 {[%clk 0:02:57]} 9. cxb5 {[%clk 0:02:55]}  axb5 {[%clk 0:02:57]} 10. Nxb5 {[%clk 0:02:55]}  c6 {[%clk 0:02:57]} 11. Nbc3 {[%clk 0:02:55]}  e5 {[%clk 0:02:58]} 12. Ng3 {[%clk 0:02:53]}  Re8 {[%clk 0:02:53]} 13. Be2 {[%clk 0:02:52]}  h5 {[%clk 0:02:46]} 14. O-O {[%clk 0:02:49]}  h4 {[%clk 0:02:46]} 15. Nh1 {[%clk 0:02:50]}  d5 {[%clk 0:02:40]} 16. exd5 {[%clk 0:02:48]}  Nxd5 {[%clk 0:02:32]} 17. Nxd5 {[%clk 0:02:47]}  cxd5 {[%clk 0:02:33]} 18. Rfe1 {[%clk 0:02:39]}  h3 {[%clk 0:02:17]} 19. g3 {[%clk 0:02:37]}  Ba6 {[%clk 0:02:11]} 20. Bxa6 {[%clk 0:02:35]}  Rxa6 {[%clk 0:02:10]} 21. Nf2 {[%clk 0:02:32]}  Qa8 {[%clk 0:02:05]} 22. a3 {[%clk 0:02:23]}  Rae6 {[%clk 0:01:58]} 23. Nd3 {[%clk 0:02:10]}  exd4 {[%clk 0:01:51]} 24. Bf2 {[%clk 0:02:10]}  Re3 {[%clk 0:01:30]} 25. Bxe3 {[%clk 0:01:58]}  dxe3 {[%clk 0:01:29]} 26. Qe2 {[%clk 0:01:58]}  d4 {[%clk 0:01:24]} 27. Rad1 {[%clk 0:01:56]}  Rb8 {[%clk 0:01:18]} 28. Rc1 {[%clk 0:01:46]}  Rb3 {[%clk 0:01:15]} 29. Red1 {[%clk 0:01:40]}  Qb7 {[%clk 0:00:58]} 30. Rc2 {[%clk 0:01:35]}  Rxd3 {[%clk 0:00:54]} 31. Rxd3 {[%clk 0:01:18]}  Ne5 {[%clk 0:00:53]} 32. f4 {[%clk 0:01:18]}  Nf3+ {[%clk 0:00:26]} 33. Kf1 {[%clk 0:01:19]}  Nd2+ {[%clk 0:00:25]} 34. Kg1 {[%clk 0:01:19]}  Nf3+ {[%clk 0:00:19]} 35. Kf1 {[%clk 0:01:19]}  Nd2+ {[%clk 0:00:19]} 36. Kg1 {[%clk 0:01:19]}  Nf3+ {[%clk 0:00:19]} 1/2-1/2


[Site "https://www.chess.com"]

[Event "Titled Tuesday Blitz December 14 2021"]
[White "Suvorov, Alexander"]
[Black "Grigoriants, Sergey"]
[WhiteFideId "12977063"]
[BlackFideId "4130804"]
[WhiteElo "2221"]
[BlackElo "2502"]
[Result "1/2-1/2"]
[Round "07"]
[TimeControl "180+1"]
[Date "2021.12.15"]
[WhiteClock "0:00:21"]
[BlackClock "0:00:05"]

1. d4 {[%clk 0:03:00]}  Nf6 {[%clk 0:02:59]} 2. c4 {[%clk 0:03:01]}  g6 {[%clk 0:02:59]} 3. Nc3 {[%clk 0:02:57]}  d5 {[%clk 0:02:59]} 4. cxd5 {[%clk 0:02:53]}  Nxd5 {[%clk 0:02:58]} 5. e4 {[%clk 0:02:53]}  Nxc3 {[%clk 0:02:58]} 6. bxc3 {[%clk 0:02:54]}  Bg7 {[%clk 0:02:58]} 7. Bg5 {[%clk 0:02:54]}  c5 {[%clk 0:02:55]} 8. Rc1 {[%clk 0:02:55]}  O-O {[%clk 0:02:44]} 9. Nf3 {[%clk 0:02:42]}  cxd4 {[%clk 0:02:37]} 10. cxd4 {[%clk 0:02:41]}  Bg4 {[%clk 0:02:32]} 11. d5 {[%clk 0:02:39]}  h6 {[%clk 0:02:30]} 12. Be3 {[%clk 0:02:31]}  e6 {[%clk 0:02:25]} 13. Bc4 {[%clk 0:02:26]}  exd5 {[%clk 0:02:17]} 14. Bxd5 {[%clk 0:02:27]}  Nc6 {[%clk 0:02:17]} 15. h3 {[%clk 0:02:21]}  Be6 {[%clk 0:01:52]} 16. O-O {[%clk 0:02:14]}  Re8 {[%clk 0:01:36]} 17. Qb3 {[%clk 0:01:57]}  Na5 {[%clk 0:01:18]} 18. Qb5 {[%clk 0:01:53]}  Bxd5 {[%clk 0:01:17]} 19. exd5 {[%clk 0:01:53]}  a6 {[%clk 0:01:17]} 20. Qb6 {[%clk 0:01:48]}  Re4 {[%clk 0:00:50]} 21. Rfd1 {[%clk 0:01:16]}  Nc4 {[%clk 0:00:23]} 22. Qxd8+ {[%clk 0:01:10]}  Rxd8 {[%clk 0:00:22]} 23. Bc5 {[%clk 0:01:04]}  Bf8 {[%clk 0:00:20]} 24. Bxf8 {[%clk 0:00:52]}  Kxf8 {[%clk 0:00:21]} 25. Rd3 {[%clk 0:00:46]}  b5 {[%clk 0:00:21]} 26. g3 {[%clk 0:00:40]}  Ne5 {[%clk 0:00:14]} 27. Nxe5 {[%clk 0:00:38]}  Rxe5 {[%clk 0:00:15]} 28. d6 {[%clk 0:00:33]}  Re6 {[%clk 0:00:02]} 29. Rc6 {[%clk 0:00:33]}  a5 {[%clk 0:00:03]} 30. Ra6 {[%clk 0:00:29]}  b4 {[%clk 0:00:04]} 31. Kg2 {[%clk 0:00:23]}  Re5 {[%clk 0:00:04]} 32. Ra7 {[%clk 0:00:19]}  Re6 {[%clk 0:00:04]} 33. Rxa5 {[%clk 0:00:20]}  Rexd6 {[%clk 0:00:04]} 34. Rxd6 {[%clk 0:00:19]}  Rxd6 {[%clk 0:00:05]} 35. Rb5 {[%clk 0:00:20]}  Rd2 {[%clk 0:00:05]} 36. Rxb4 {[%clk 0:00:20]}  Rxa2 {[%clk 0:00:05]} 37. Rb3 {[%clk 0:00:21]}  Kg7 {[%clk 0:00:05]} 1/2-1/2


[Site "https://www.chess.com"]

[Event "Titled Tuesday Blitz December 14 2021"]
[White "Svane, Frederik"]
[Black "Zhigalko, Sergei"]
[WhiteFideId "12923044"]
[BlackFideId "13502956"]
[WhiteElo "2459"]
[BlackElo "2662"]
[Result "1-0"]
[Round "07"]
[TimeControl "180+1"]
[Date "2021.12.14"]
[WhiteClock "0:00:09"]
[BlackClock "0:00:04"]

1. e4 {[%clk 0:03:00]}  c5 {[%clk 0:03:00]} 2. Nf3 {[%clk 0:03:00]}  Nc6 {[%clk 0:02:58]} 3. Bb5 {[%clk 0:03:00]}  Nf6 {[%clk 0:02:56]} 4. Nc3 {[%clk 0:02:52]}  Qc7 {[%clk 0:02:56]} 5. O-O {[%clk 0:02:45]}  Nd4 {[%clk 0:02:56]} 6. Re1 {[%clk 0:02:45]}  a6 {[%clk 0:02:56]} 7. Bf1 {[%clk 0:02:44]}  Ng4 {[%clk 0:02:55]} 8. g3 {[%clk 0:02:37]}  Nxf3+ {[%clk 0:02:55]} 9. Qxf3 {[%clk 0:02:38]}  Ne5 {[%clk 0:02:55]} 10. Qe2 {[%clk 0:02:35]}  e6 {[%clk 0:02:56]} 11. d3 {[%clk 0:02:32]}  d6 {[%clk 0:02:55]} 12. Bg2 {[%clk 0:02:32]}  Be7 {[%clk 0:02:55]} 13. Be3 {[%clk 0:02:23]}  O-O {[%clk 0:02:55]} 14. f4 {[%clk 0:02:18]}  Nc6 {[%clk 0:02:55]} 15. Qf2 {[%clk 0:02:19]}  Rb8 {[%clk 0:02:49]} 16. g4 {[%clk 0:02:10]}  b5 {[%clk 0:02:46]} 17. h4 {[%clk 0:01:57]}  Nd4 {[%clk 0:02:40]} 18. Rac1 {[%clk 0:01:44]}  b4 {[%clk 0:02:35]} 19. Bxd4 {[%clk 0:01:21]}  cxd4 {[%clk 0:02:20]} 20. Ne2 {[%clk 0:01:21]}  e5 {[%clk 0:01:49]} 21. f5 {[%clk 0:01:21]}  h6 {[%clk 0:01:50]} 22. Kh2 {[%clk 0:01:08]}  Rb5 {[%clk 0:01:32]} 23. Kh3 {[%clk 0:01:02]}  Ra5 {[%clk 0:01:32]} 24. Ng3 {[%clk 0:00:50]}  Rxa2 {[%clk 0:01:27]} 25. b3 {[%clk 0:00:31]}  a5 {[%clk 0:01:15]} 26. Re2 {[%clk 0:00:30]}  Bd7 {[%clk 0:01:00]} 27. Nh5 {[%clk 0:00:06]}  f6 {[%clk 0:01:01]} 28. Rg1 {[%clk 0:00:03]}  Rc8 {[%clk 0:00:53]} 29. Rc1 {[%clk 0:00:02]}  a4 {[%clk 0:00:52]} 30. bxa4 {[%clk 0:00:01]}  Rxa4 {[%clk 0:00:42]} 31. g5 {[%clk 0:00:01]}  fxg5 {[%clk 0:00:42]} 32. Bf3 {[%clk 0:00:02]}  gxh4 {[%clk 0:00:30]} 33. Bg4 {[%clk 0:00:02]}  Bg5 {[%clk 0:00:31]} 34. Rf1 {[%clk 0:00:02]}  Ra2 {[%clk 0:00:26]} 35. Qg2 {[%clk 0:00:02]}  Rxc2 {[%clk 0:00:24]} 36. f6 {[%clk 0:00:02]}  Bxg4+ {[%clk 0:00:17]} 37. Qxg4 {[%clk 0:00:02]}  Rxe2 {[%clk 0:00:18]} 38. Qxe2 {[%clk 0:00:02]}  Qd7+ {[%clk 0:00:18]} 39. Kh2 {[%clk 0:00:02]}  b3 {[%clk 0:00:16]} 40. fxg7 {[%clk 0:00:02]}  Qe6 {[%clk 0:00:03]} 41. Qf3 {[%clk 0:00:02]}  Be7 {[%clk 0:00:04]} 42. Qh3 {[%clk 0:00:01]}  Qxh3+ {[%clk 0:00:03]} 43. Kxh3 {[%clk 0:00:02]}  b2 {[%clk 0:00:04]} 44. Rb1 {[%clk 0:00:03]}  Rb8 {[%clk 0:00:03]} 45. Kg4 {[%clk 0:00:03]}  Kf7 {[%clk 0:00:02]} 46. Kh3 {[%clk 0:00:03]}  Ke6 {[%clk 0:00:01]} 47. Rxb2 {[%clk 0:00:03]}  Rc8 {[%clk 0:00:01]} 48. Rg2 {[%clk 0:00:03]}  Rg8 {[%clk 0:00:01]} 49. Rg6+ {[%clk 0:00:03]}  Kf7 {[%clk 0:00:02]} 50. Rxh6 {[%clk 0:00:04]}  Re8 {[%clk 0:00:02]} 51. Rh8 {[%clk 0:00:03]}  Rg8 {[%clk 0:00:02]} 52. Rh7 {[%clk 0:00:04]}  Kg6 {[%clk 0:00:03]} 53. Rh8 {[%clk 0:00:04]}  Rxg7 {[%clk 0:00:03]} 54. Nxg7 {[%clk 0:00:04]}  Kxg7 {[%clk 0:00:04]} 55. Re8 {[%clk 0:00:04]}  Kf7 {[%clk 0:00:04]} 56. Rc8 {[%clk 0:00:04]}  Ke6 {[%clk 0:00:05]} 57. Kg4 {[%clk 0:00:04]}  Bf6 {[%clk 0:00:05]} 58. Rg8 {[%clk 0:00:05]}  Kf7 {[%clk 0:00:05]} 59. Rb8 {[%clk 0:00:05]}  Ke6 {[%clk 0:00:06]} 60. Rb7 {[%clk 0:00:05]}  Be7 {[%clk 0:00:06]} 61. Ra7 {[%clk 0:00:06]}  Bd8 {[%clk 0:00:06]} 62. Rh7 {[%clk 0:00:05]}  Bf6 {[%clk 0:00:06]} 63. Rh6 {[%clk 0:00:06]}  Kf7 {[%clk 0:00:03]} 64. Kf5 {[%clk 0:00:06]}  Bd8 {[%clk 0:00:02]} 65. Rh7+ {[%clk 0:00:07]}  Kg8 {[%clk 0:00:01]} 66. Rd7 {[%clk 0:00:07]}  Ba5 {[%clk 0:00:01]} 67. Kg4 {[%clk 0:00:07]}  Be1 {[%clk 0:00:01]} 68. Rxd6 {[%clk 0:00:07]}  Bg3 {[%clk 0:00:02]} 69. Rf6 {[%clk 0:00:07]}  Kg7 {[%clk 0:00:03]} 70. Rf5 {[%clk 0:00:07]}  Kg6 {[%clk 0:00:03]} 71. Rh5 {[%clk 0:00:08]}  Kf6 {[%clk 0:00:03]} 72. Rh6+ {[%clk 0:00:08]}  Ke7 {[%clk 0:00:03]} 73. Kf5 {[%clk 0:00:08]}  Kd7 {[%clk 0:00:03]} 74. Kf6 {[%clk 0:00:07]}  Kd6 {[%clk 0:00:03]} 75. Kf5+ {[%clk 0:00:07]}  Kc5 {[%clk 0:00:04]} 76. Kg4 {[%clk 0:00:06]}  Kb4 {[%clk 0:00:04]} 77. Rc6 {[%clk 0:00:06]}  Kb3 {[%clk 0:00:04]} 78. Rc4 {[%clk 0:00:06]}  Kb2 {[%clk 0:00:04]} 79. Rc5 {[%clk 0:00:07]}  Kb3 {[%clk 0:00:03]} 80. Kf3 {[%clk 0:00:07]}  Bf4 {[%clk 0:00:03]} 81. Rc8 {[%clk 0:00:06]}  h3 {[%clk 0:00:03]} 82. Rh8 {[%clk 0:00:06]}  h2 {[%clk 0:00:03]} 83. Ke2 {[%clk 0:00:06]}  Kc2 {[%clk 0:00:04]} 84. Rc8+ {[%clk 0:00:06]}  Kb3 {[%clk 0:00:04]} 85. Rh8 {[%clk 0:00:07]}  Kc3 {[%clk 0:00:04]} 86. Rc8+ {[%clk 0:00:07]}  Kb4 {[%clk 0:00:04]} 87. Rh8 {[%clk 0:00:08]}  Bg3 {[%clk 0:00:04]} 88. Rh3 {[%clk 0:00:07]}  Kc3 {[%clk 0:00:04]} 89. Kf3 {[%clk 0:00:06]}  Bf4 {[%clk 0:00:01]} 90. Ke2 {[%clk 0:00:06]}  Kc2 {[%clk 0:00:02]} 91. Rh8 {[%clk 0:00:07]}  Bg3 {[%clk 0:00:02]} 92. Rc8+ {[%clk 0:00:07]}  Kb3 {[%clk 0:00:03]} 93. Rh8 {[%clk 0:00:07]}  Bf4 {[%clk 0:00:03]} 94. Rb8+ {[%clk 0:00:07]}  Ka4 {[%clk 0:00:04]} 95. Rh8 {[%clk 0:00:08]}  Kb5 {[%clk 0:00:04]} 96. Kf3 {[%clk 0:00:08]}  Kc5 {[%clk 0:00:04]} 97. Kg2 {[%clk 0:00:08]}  Kd6 {[%clk 0:00:05]} 98. Rh5 {[%clk 0:00:08]}  Ke6 {[%clk 0:00:05]} 99. Kf3 {[%clk 0:00:08]}  Kf6 {[%clk 0:00:06]} 100. Kg4 {[%clk 0:00:09]}  Kg7 {[%clk 0:00:07]} 101. Kf5 {[%clk 0:00:08]}  Kg8 {[%clk 0:00:06]} 102. Kf6 {[%clk 0:00:08]}  Bg3 {[%clk 0:00:05]} 103. Kg5 {[%clk 0:00:08]}  Bf4+ {[%clk 0:00:05]} 104. Kf5 {[%clk 0:00:09]}  Kg7 {[%clk 0:00:06]} 105. Rh3 {[%clk 0:00:09]}  Kg8 {[%clk 0:00:04]} 106. Kf6 {[%clk 0:00:09]} 1-0


[Site "https://www.chess.com"]